{"text_format":"2","workbook":"xlsx","n_sheets":15,"sheets":["előlap","(1T-2T) személyi+járulék","(3T) külső megbízás","(4T) egyéb dologi költs","(5T) rezsi","(6T)immat beszerz","(7T) eszközbeszerz","(8T) beruházás felújítás","(9T) részfeladat tábla","támogatás típusai","(TI) támogatás igénylés","(KNY)könyvvizsgálói nyilatkozat","(LNY) lemondó nyilatkozat","(NYF)nyilatkozat függetlenségre","(EI) előleg igénylés"],"not_rendered":{"charts":0,"images":0,"macros":0,"external_links":0,"defined_names":24,"comments":0,"pivot_tables":0},"unopened":[],"bounds":{"document_bytes":16777216,"sheet_cells":100000,"run_cost":"one","rows_first":2000,"rows_last":500,"rows_between":2000,"halvings":0,"cell_chars":16384,"cell_head_chars":4096},"cells_cut":0,"cells_raw":0,"read":"whole","date_system":"1900"}

{"sheet":"előlap","index":0,"n_rows":23,"n_cols":4,"rows_kept":23,"cut":false,"hidden":false,"merged":[[10,3,19,3],[10,2,19,2],[9,0,9,1],[0,0,0,3],[4,2,4,3],[5,2,5,3],[6,2,6,3],[4,0,4,1],[5,0,5,1],[6,0,6,1],[1,0,1,3],[2,0,2,3]]}
["PÉNZÜGYI BESZÁMOLÓ"]
["NKFI Alapból finanszírozott innovációs projektek pénzügyi beszámolóinak elkészítéséhez "]
["Jelen sablon mindazon nyertes innovációs projektekre vonatkozik, amelyeknél a pályázatot nem a palyazat.gov.hu oldalon keresztül elérhető on-line felületen kellett beadni és a támogatási szerződés hatályba lépésére 2017.01.01-ét követően került sor. \n\nJelen sablon érvényes a tudományos kutatásról, fejlesztésről és innovációról szóló 2014. évi LXXVI. törvény 13. § (2) bekezdése szerinti támogatást elnyert projektre is."]
[]
["Kedvezményezett neve:",null,"ZZ Kft"]
["Szerződésszám:",null,"NPK_22-2022-0001"]
["Az elszámolással érintett időszak kezdete és vége:",null,"2020.01.01.-2022.12.31."]
[]
[]
["Beadott dokumentumok (ellenőrző) listája:",null,"Dokumentum mellékelve (igen/nem) legördülő menü","Minden elszámolásnál kötelezően beadandó dokumentum"]
["1T-2T","Személyi juttatások és járulékai","igen","IGEN"]
["3T","Külső megbízások"]
["4T","Egyéb dologi költségek"]
["5T","Rezsi költségek"]
["6T","Immateriális javak beszerzése"]
["7T","Eszközbeszerzések"]
["8T","Beruházás, felújítás"]
["9T","Részfeladat tábla \n(Támogatás, Saját forrás; Egyéb forrás; Összesítés)"]
["TI","Támogatás igénylés"]
["KNY","Könyvvizsgálói nyilatkozat"]
["LNY","Lemondó nyilatkozat (*)",null,"Csak a projekt utolsó elszámolásakor kell beadni, amennyiben a megítélt támogatás nem került teljes mértékben felhasználásra"]
["NYF","Nyilatkozat az összeférhetetlenségre vonatkozóan","igen","IGEN"]
["EI","Előleg igénylés",null,"A projekt következő időszakára vonatkozó előleg lekérése esetén kell beadni"]

{"sheet":"(1T-2T) személyi+járulék","index":1,"n_rows":33,"n_cols":21,"rows_kept":33,"cut":false,"hidden":false,"merged":[[27,0,27,20],[24,0,24,20],[25,0,25,6],[6,0,6,1],[6,6,7,6],[6,19,7,19],[6,2,6,3],[6,20,7,20],[6,4,7,4],[0,0,0,5],[1,0,1,5],[2,0,2,5],[0,6,0,10],[1,6,1,10],[2,6,2,10],[4,0,4,20],[6,5,7,5],[6,16,6,18],[6,7,6,9],[6,10,6,12],[6,13,6,15]]}
["Kedvezményezett neve:",{"$nulls":5},{"$f":"előlap!C5","v":"ZZ Kft"}]
["Szerződésszám:",{"$nulls":5},{"$f":"előlap!C6","v":"NPK_22-2022-0001"}]
["Az elszámolással érintett időszak kezdete és vége:",{"$nulls":5},{"$f":"előlap!C7","v":"2020.01.01.-2022.12.31."}]
[]
["SZEMÉLYI JUTTATÁSOK ÉS JÁRULÉKAI"]
[]
["Projektben résztvevő dolgozók",null,"Az elszámolt időszak",null,"Az adott hónapban a projektre elszámolt munka-órák száma","Pénzügyi teljesítés időpontja","Állandó dolgozó (Á), vagy megbí-zásos dolgozó (M)  (legördülő menű)","Projektre elszámolt bruttó bér (Ft)",null,null,"Projektre elszámolt egyéb juttatások (Ft) (pld. napidíj, stb.)",null,null,"Projektre elszámolt bruttó bér és juttatások összesen (Ft)",null,null,"Projektre elszámolt bruttó bér járuléka (Ft)",null,null,"Rész-feladat száma","Tám. int."]
["neve","státusza (legördülő menű)\n","kezdete (dátum)","vége (dátum)",null,null,null,"Támogatás","Saját forrás","Egyéb forrás","Támogatás","Saját forrás","Egyéb forrás","Támogatás","Saját forrás","Egyéb forrás","Támogatás","Saját forrás","Egyéb forrás"]
["Panni","K+F munkatárs","2016-01-01","2016-01-25",null,"2016-02-05","M",5000,500,50,1000,100,10,{"$f":"H9+K9","v":6000},{"$f":"I9+L9","v":600},{"$f":"J9+M9","v":60},2000,200,20,1,1]
[null,"Techn., segédszem.","2016-01-01","2016-01-25",26,"2016-02-05","Á",{"$nulls":6},{"$f":"H10+K10","v":0},{"$f":"I10+L10","v":0},{"$f":"J10+M10","v":0}]
[null,"Pr.menedzser",{"$nulls":11},0,0,0]
[null,"Egyéb ",{"$nulls":11},0,0,0]
[{"$nulls":13},0,0,0]
[{"$nulls":13},0,0,0]
[{"$nulls":13},0,0,0]
[{"$nulls":13},0,0,0]
[{"$nulls":13},0,0,0]
[{"$nulls":13},0,0,0]
[{"$nulls":13},0,0,0]
[{"$nulls":13},0,0,0]
[{"$nulls":13},0,0,0]
[{"$nulls":13},0,0,0]
[{"$nulls":13},0,0,0]
[{"$nulls":13},0,0,0]
[]
["Összesen:",{"$nulls":6},{"$f":"SUM(H9:H24)","v":5000},{"$f":"SUM(I9:I24)","v":500},50,1000,100,10,6000,600,60,2000,200,20]
[]
["A jelen táblázatban összesített, a munkavállalóknak kifizetett nettó jövedelem, illetve a munkavállalót és a munkáltatót terhelő adók, járulékok a  jelen támogatás igénylést megelőzően kifizetésre kerültek. Büntetőjogi felelősségem tudatában nyilatkozom hogy a fenti adatok a valóságnak megfelelnek, hitelesek, továbbá, hogy az illetmények számfejtésének és kifizetésének a bizonylatai, valamint a számfejtés alapját képező teljesítésigazolások és a munka- vagy megbízási szerződések a Kedvezményezettnél megtalálhatóak. "]
[]
["Hely, dátum"]
[]
[{"$nulls":6}," ……………………………………"]
["* Az aláírók nevét nyomtatott betűkkel is kérjük kitölteni.",{"$nulls":5},"cégszerű aláírás*",null,"Ph."]

{"sheet":"(3T) külső megbízás","index":2,"n_rows":35,"n_cols":17,"rows_kept":35,"cut":false,"hidden":false,"merged":[[4,0,4,16],[0,4,0,8],[1,4,1,8],[2,0,2,3],[2,4,2,8],[1,0,1,3],[0,0,0,3],[29,0,29,16],[27,0,27,7],[6,4,7,4],[6,5,7,5],[6,1,7,1],[6,0,7,0],[6,8,6,10],[27,15,27,16],[6,15,7,15],[6,7,7,7],[6,6,7,6],[26,0,26,16],[6,16,7,16],[6,11,6,14],[6,2,7,2],[6,3,7,3]]}
["Kedvezményezett neve:",null,null,null,{"$f":"előlap!C5","v":"ZZ Kft"}]
["Szerződésszám:",null,null,null,{"$f":"előlap!C6","v":"NPK_22-2022-0001"}]
["Az elszámolással érintett időszak kezdete és vége:",null,null,null,{"$f":"előlap!C7","v":"2020.01.01.-2022.12.31."}]
[]
["KÜLSŐ MEGBÍZÁSOK"]
[]
["Sor-szám","Számviteli bizonylat kiállítójának neve","Adószáma","Számviteli bizonylat sorszáma","Kiállítás kelte","Teljesítés dátuma","Pénzügyi teljesítés időpontja","Gazdasági esemény rövid leírása","Összege (Ft)",null,null,"Projekt terhére elszámolt költségek (Ft)",null,null,null,"Rész-feladat száma","Tám. int."]
["szám",{"$nulls":7},"Bruttó","Nettó","ÁFA","Támogatás","Saját forrás","Egyéb f.","Összesen"]
["1.",{"$nulls":7},325,325,0,325,null,null,{"$f":"SUM(L9:N9)","v":325},null,1]
["2.",{"$nulls":13},{"$f":"SUM(L10:N10)","v":0}]
[{"$nulls":14},0]
[{"$nulls":14},0]
[{"$nulls":14},0]
[{"$nulls":14},0]
[{"$nulls":14},0]
[{"$nulls":14},0]
[{"$nulls":14},0]
[{"$nulls":14},0]
[{"$nulls":14},0]
[{"$nulls":14},0]
[{"$nulls":14},0]
[{"$nulls":14},0]
[{"$nulls":14},0]
[{"$nulls":14},0]
[{"$nulls":14},0]
[{"$nulls":14},0]
[]
[" Összesen",{"$nulls":7},{"$f":"SUM(I9:I26)","v":325},325,0,325,0,0,325]
[]
["A jelen táblázatban összesített számlák és bizonylatok a jelen támogatás igénylés benyújtását megelőzően szakmailag és pénzügyileg teljesítésre kerültek, a projektben történő felhasználás mértéke erejéig kerültek elszámolásra.\nA Kedvezményezett tudomásul veszi, hogy jelen melléklet szerinti számlaösszesítő táblázatok befogadása nem jelenti egyben a táblázatok tartalmának pénzügyi elfogadását, ugyanakkor a számlaösszesítő táblázatok kitöltéséért teljeskörű felelősséggel tartozik. "]
[]
["Hely, dátum"]
[{"$nulls":4}," ……………………………………"]
[{"$nulls":4},"cégszerű aláírás*",null,"Ph."]
["* Az aláírók nevét nyomtatott betűkkel is kérjük kitölteni."]

{"sheet":"(4T) egyéb dologi költs","index":3,"n_rows":32,"n_cols":17,"rows_kept":32,"cut":false,"hidden":false,"merged":[[26,0,26,16],[0,0,0,2],[1,0,1,2],[6,0,7,0],[6,1,7,1],[6,2,7,2],[6,11,6,14],[24,0,24,6],[6,7,7,7],[6,15,7,15],[6,16,7,16],[24,15,24,16],[2,3,2,7],[6,4,7,4],[23,0,23,16],[6,8,6,10],[2,0,2,2],[0,3,0,7],[6,5,7,5],[6,3,7,3],[6,6,7,6],[1,3,1,7],[4,0,4,16]]}
["Kedvezményezett neve:",null,null,{"$f":"előlap!C5","v":"ZZ Kft"}]
["Szerződésszám:",null,null,{"$f":"előlap!C6","v":"NPK_22-2022-0001"}]
["Az elszámolással érintett időszak kezdete és vége:",null,null,{"$f":"előlap!C7","v":"2020.01.01.-2022.12.31."}]
[]
["EGYÉB DOLOGI KÖLTSÉGEK (rezsi nélkül)"]
[]
["Sor-szám","Számviteli bizonylat kiállítójának neve","Adószáma","Számviteli bizonylat sorszáma","Kiállítás kelte","Teljesítés dátuma","Pénzügyi teljesítés időpontja","Gazdasági esemény rövid leírása","Összege (Ft)",null,null,"Projekt terhére elszámolt költségek (Ft)",null,null,null,"Rész-feladat száma","Tám. int."]
["szám",{"$nulls":7},"Bruttó","Nettó","ÁFA","Támogatás","Saját forrás","Egyéb f.","Összesen"]
["1.",{"$nulls":7},10100,10100,0,10100,null,null,{"$f":"SUM(L9:N9)","v":10100},null,1]
["2.",{"$nulls":13},{"$f":"SUM(L10:N10)","v":0}]
[{"$nulls":14},0]
[{"$nulls":14},0]
[{"$nulls":14},0]
[{"$nulls":14},0]
[{"$nulls":14},0]
[{"$nulls":14},0]
[{"$nulls":14},0]
[{"$nulls":14},0]
[{"$nulls":14},0]
[{"$nulls":14},0]
[{"$nulls":14},0]
[{"$nulls":14},0]
[{"$nulls":14},0]
[]
[" Összesen",{"$nulls":6},{"$f":"SUM(H9:H23)","v":0},10100,10100,0,10100,0,0,10100]
[]
["A jelen táblázatban összesített számlák és bizonylatok a jelen támogatás igénylés benyújtását megelőzően szakmailag és pénzügyileg teljesítésre kerültek, a projektben történő felhasználás mértéke erejéig kerültek elszámolásra.\nA Kedvezményezett tudomásul veszi, hogy jelen melléklet szerinti számlaösszesítő táblázatok befogadása nem jelenti egyben a táblázatok tartalmának pénzügyi elfogadását, ugyanakkor a számlaösszesítő táblázatok kitöltéséért teljeskörű felelősséggel tartozik. "]
[]
[]
["Hely, dátum",null,null,null," ……………………………………"]
[{"$nulls":4},"cégszerű aláírás*",null,"Ph."]
["* Az aláírók nevét nyomtatott betűkkel is kérjük kitölteni."]

{"sheet":"(5T) rezsi","index":4,"n_rows":32,"n_cols":17,"rows_kept":32,"cut":false,"hidden":false,"merged":[[24,0,24,6],[24,15,24,16],[26,0,26,16],[6,7,7,7],[6,8,6,10],[6,11,6,14],[6,15,7,15],[6,16,7,16],[23,0,23,16],[4,0,4,16],[6,0,7,0],[6,1,7,1],[6,2,7,2],[6,3,7,3],[6,4,7,4],[6,5,7,5],[6,6,7,6],[0,0,0,2],[0,3,0,7],[1,0,1,2],[1,3,1,7],[2,0,2,2],[2,3,2,7]]}
["Kedvezményezett neve:",null,null,{"$f":"előlap!C5","v":"ZZ Kft"}]
["Szerződésszám:",null,null,{"$f":"előlap!C6","v":"NPK_22-2022-0001"}]
["Az elszámolással érintett időszak kezdete és vége:",null,null,{"$f":"előlap!C7","v":"2020.01.01.-2022.12.31."}]
[]
["REZSI KÖLTSÉGEK"]
[]
["Sor-szám","Számviteli bizonylat kiállítójának neve","Adószáma","Számviteli bizonylat sorszáma","Kiállítás kelte","Teljesítés dátuma","Pénzügyi teljesítés időpontja","Gazdasági esemény rövid leírása","Összege (Ft)",null,null,"Projekt terhére elszámolt költségek (Ft)",null,null,null,"Rész-feladat száma","Tám. int."]
["szám",{"$nulls":7},"Bruttó","Nettó","ÁFA","Támogatás","Saját forrás","Egyéb f.","Összesen"]
["1.",{"$nulls":7},200,200,null,200,null,null,{"$f":"SUM(L9:N9)","v":200},null,1]
["2.",{"$nulls":13},{"$f":"SUM(L10:N10)","v":0}]
[{"$nulls":14},0]
[{"$nulls":14},0]
[{"$nulls":14},0]
[{"$nulls":14},0]
[{"$nulls":14},0]
[{"$nulls":14},0]
[{"$nulls":14},0]
[{"$nulls":14},0]
[{"$nulls":14},0]
[{"$nulls":14},0]
[{"$nulls":14},0]
[{"$nulls":14},0]
[{"$nulls":14},0]
[]
[" Összesen",{"$nulls":6},{"$f":"SUM(H9:H23)","v":0},200,200,0,200,0,0,200]
[]
["A jelen táblázatban összesített számlák és bizonylatok a jelen támogatás igénylés benyújtását megelőzően szakmailag és pénzügyileg teljesítésre kerültek, a projektben történő felhasználás mértéke erejéig kerültek elszámolásra.\nA Kedvezményezett tudomásul veszi, hogy jelen melléklet szerinti számlaösszesítő táblázatok befogadása nem jelenti egyben a táblázatok tartalmának pénzügyi elfogadását, ugyanakkor a számlaösszesítő táblázatok kitöltéséért teljeskörű felelősséggel tartozik. "]
[]
[]
["Hely, dátum",null,null,null," ……………………………………"]
[{"$nulls":4},"cégszerű aláírás*",null,"Ph."]
["* Az aláírók nevét nyomtatott betűkkel is kérjük kitölteni."]

{"sheet":"(6T)immat beszerz","index":5,"n_rows":38,"n_cols":20,"rows_kept":38,"cut":false,"hidden":false,"merged":[[0,3,0,6],[1,3,1,6],[28,0,28,19],[26,0,26,10],[2,3,2,6],[7,19,8,19],[25,0,25,19],[7,9,8,9],[7,18,8,18],[7,7,7,8],[7,10,8,10],[7,11,7,13],[7,14,7,17],[0,0,0,2],[1,0,1,2],[7,0,8,0],[7,1,8,1],[7,2,8,2],[2,0,2,2],[5,0,5,19],[7,3,8,3],[7,4,8,4],[7,5,8,5],[7,6,8,6]]}
["Kedvezményezett neve:",null,null,{"$f":"előlap!C5","v":"ZZ Kft"}]
["Szerződésszám:",null,null,{"$f":"előlap!C6","v":"NPK_22-2022-0001"}]
["Az elszámolással érintett időszak kezdete és vége:",null,null,{"$f":"előlap!C7","v":"2020.01.01.-2022.12.31."}]
[]
[]
["IMMATERIÁLIS JAVAK BESZERZÉSE"]
[]
["Sor-szám","Számviteli bizonylat kiállítójának neve","Adószáma","Számviteli bizonylat sorszáma","Kiállítás kelte","Teljesítés dátuma","Pénzügyi teljesítés időpontja","Amortizációnál az elszámolt időszak",null,"amortizá-ciós kulcs %","Gazdasági esemény rövid leírása","Összege (Ft)",null,null,"Projekt terhére elszámolt költségek (Ft)",null,null,null,"Rész-feladat száma","Tám. int."]
["szám",{"$nulls":6},"kezdete (dátum)","vége (dátum)",null,null,"Bruttó","Nettó","ÁFA","Támogatás","Saját forrás","Egyéb f.","Összesen"]
["1.",{"$nulls":10},6000,6000,null,3000,3000,null,{"$f":"SUM(O10:Q10)","v":6000},null,0.5]
["2.",{"$nulls":16},{"$f":"SUM(O11:Q11)","v":0}]
[{"$nulls":17},0]
[{"$nulls":17},0]
[{"$nulls":17},0]
[{"$nulls":17},0]
[{"$nulls":17},0]
[{"$nulls":17},0]
[{"$nulls":17},0]
[{"$nulls":17},0]
[{"$nulls":17},0]
[{"$nulls":17},0]
[{"$nulls":17},0]
[{"$nulls":17},0]
[{"$nulls":17},0]
[{"$nulls":17},0]
[]
["Összesen",{"$nulls":10},{"$f":"SUM(L10:L26)","v":6000},{"$f":"SUM(M10:M26)","v":6000},0,{"$f":"SUM(O10:O26)","v":3000},{"$f":"SUM(P10:P26)","v":3000},0,6000]
[]
["A jelen táblázatban összesített számlák és bizonylatok a jelen támogatás igénylés benyújtását megelőzően szakmailag és pénzügyileg teljesítésre kerültek, a projektben történő felhasználás mértéke erejéig kerültek elszámolásra.\nA Kedvezményezett tudomásul veszi, hogy jelen melléklet szerinti számlaösszesítő táblázatok befogadása nem jelenti egyben a táblázatok tartalmának pénzügyi elfogadását, ugyanakkor a számlaösszesítő táblázatok kitöltéséért teljeskörű felelősséggel tartozik. "]
[]
["Hely, dátum"]
[{"$nulls":4}," ……………………………………"]
[{"$nulls":4},"cégszerű aláírás*",null,"Ph."]
[]
[]
[]
[]
["* Az aláírók nevét nyomtatott betűkkel is kérjük kitölteni."]

{"sheet":"(7T) eszközbeszerz","index":6,"n_rows":38,"n_cols":20,"rows_kept":38,"cut":false,"hidden":false,"merged":[[26,0,26,10],[28,0,28,19],[7,10,8,10],[7,11,7,13],[7,14,7,17],[7,18,8,18],[7,19,8,19],[25,0,25,19],[5,0,5,19],[7,0,8,0],[7,1,8,1],[7,2,8,2],[7,3,8,3],[7,4,8,4],[7,5,8,5],[7,6,8,6],[7,7,7,8],[7,9,8,9],[0,0,0,2],[0,3,0,6],[1,0,1,2],[1,3,1,6],[2,0,2,2],[2,3,2,6]]}
["Kedvezményezett neve:",null,null,{"$f":"előlap!C5","v":"ZZ Kft"}]
["Szerződésszám:",null,null,{"$f":"előlap!C6","v":"NPK_22-2022-0001"}]
["Az elszámolással érintett időszak kezdete és vége:",null,null,{"$f":"előlap!C7","v":"2020.01.01.-2022.12.31."}]
[]
[]
["ESZKÖZBESZERZÉSEK"]
[]
["Sor-szám","Számviteli bizonylat kiállítójának neve","Adószáma","Számviteli bizonylat sorszáma","Kiállítás kelte","Teljesítés dátuma","Pénzügyi teljesítés időpontja","Amortizációnál az elszámolt időszak",null,"amortizá-ciós kulcs %","Gazdasági esemény rövid leírása","Összege (Ft)",null,null,"Projekt terhére elszámolt költségek (Ft)",null,null,null,"Rész-feladat száma","Tám. int."]
["szám",{"$nulls":6},"kezdete (dátum)","vége (dátum)",null,null,"Bruttó","Nettó","ÁFA","Támogatás","Saját forrás","Egyéb f.","Összesen"]
["1.",{"$nulls":10},100000,80000,20000,50000,50000,0,{"$f":"SUM(O10:Q10)","v":100000},1,0.5]
["2.",{"$nulls":16},{"$f":"SUM(O11:Q11)","v":0}]
[{"$nulls":17},0]
[{"$nulls":17},0]
[{"$nulls":17},0]
[{"$nulls":17},0]
[{"$nulls":17},0]
[{"$nulls":17},0]
[{"$nulls":17},0]
[{"$nulls":17},0]
[{"$nulls":17},0]
[{"$nulls":17},0]
[{"$nulls":17},0]
[{"$nulls":17},0]
[{"$nulls":17},0]
[{"$nulls":17},0]
[]
["Összesen",{"$nulls":10},{"$f":"SUM(L10:L26)","v":100000},{"$f":"SUM(M10:M26)","v":80000},20000,{"$f":"SUM(O10:O26)","v":50000},{"$f":"SUM(P10:P26)","v":50000},0,100000]
[]
["A jelen táblázatban összesített számlák és bizonylatok a jelen támogatás igénylés benyújtását megelőzően szakmailag és pénzügyileg teljesítésre kerültek, a projektben történő felhasználás mértéke erejéig kerültek elszámolásra.\nA Kedvezményezett tudomásul veszi, hogy jelen melléklet szerinti számlaösszesítő táblázatok befogadása nem jelenti egyben a táblázatok tartalmának pénzügyi elfogadását, ugyanakkor a számlaösszesítő táblázatok kitöltéséért teljeskörű felelősséggel tartozik. "]
[]
["Hely, dátum"]
[{"$nulls":4}," ……………………………………"]
[{"$nulls":4},"cégszerű aláírás*",null,"Ph."]
[]
[]
[]
[]
["* Az aláírók nevét nyomtatott betűkkel is kérjük kitölteni."]

{"sheet":"(8T) beruházás felújítás","index":7,"n_rows":38,"n_cols":20,"rows_kept":38,"cut":false,"hidden":false,"merged":[[26,0,26,10],[28,0,28,19],[7,10,8,10],[7,11,7,13],[7,14,7,17],[7,18,8,18],[7,19,8,19],[25,0,25,19],[5,0,5,19],[7,0,8,0],[7,1,8,1],[7,2,8,2],[7,3,8,3],[7,4,8,4],[7,5,8,5],[7,6,8,6],[7,7,7,8],[7,9,8,9],[0,0,0,2],[0,3,0,6],[1,0,1,2],[1,3,1,6],[2,0,2,2],[2,3,2,6]]}
["Kedvezményezett neve:",null,null,{"$f":"előlap!C5","v":"ZZ Kft"}]
["Szerződésszám:",null,null,{"$f":"előlap!C6","v":"NPK_22-2022-0001"}]
["Az elszámolással érintett időszak kezdete és vége:",null,null,{"$f":"előlap!C7","v":"2020.01.01.-2022.12.31."}]
[]
[]
["BERUZÁZÁS, FELÚJÍTÁS"]
[]
["Sor-szám","Számviteli bizonylat kiállítójának neve","Adószáma","Számviteli bizonylat sorszáma","Kiállítás kelte","Teljesítés dátuma","Pénzügyi teljesítés időpontja","Amortizációnál az elszámolt időszak",null,"amortizá-ciós kulcs %","Gazdasági esemény rövid leírása","Összege (Ft)",null,null,"Projekt terhére elszámolt költségek (Ft)",null,null,null,"Rész-feladat száma","Tám. int."]
["szám",{"$nulls":6},"kezdete (dátum)","vége (dátum)",null,null,"Bruttó","Nettó","ÁFA","Támogatás","Saját forrás","Egyéb f.","Összesen"]
["1.",{"$nulls":10},10000,10000,null,2500,7500,null,{"$f":"SUM(O10:Q10)","v":10000},null,0.25]
["2.",{"$nulls":16},{"$f":"SUM(O11:Q11)","v":0}]
[{"$nulls":17},0]
[{"$nulls":17},0]
[{"$nulls":17},0]
[{"$nulls":17},0]
[{"$nulls":17},0]
[{"$nulls":17},0]
[{"$nulls":17},0]
[{"$nulls":17},0]
[{"$nulls":17},0]
[{"$nulls":17},0]
[{"$nulls":17},0]
[{"$nulls":17},0]
[{"$nulls":17},0]
[{"$nulls":17},0]
[]
["Összesen",{"$nulls":10},{"$f":"SUM(L10:L26)","v":10000},{"$f":"SUM(M10:M26)","v":10000},0,{"$f":"SUM(O10:O26)","v":2500},{"$f":"SUM(P10:P26)","v":7500},0,10000]
[]
["A jelen táblázatban összesített számlák és bizonylatok a jelen támogatás igénylés benyújtását megelőzően szakmailag és pénzügyileg teljesítésre kerültek, a projektben történő felhasználás mértéke erejéig kerültek elszámolásra.\nA Kedvezményezett tudomásul veszi, hogy jelen melléklet szerinti számlaösszesítő táblázatok befogadása nem jelenti egyben a táblázatok tartalmának pénzügyi elfogadását, ugyanakkor a számlaösszesítő táblázatok kitöltéséért teljeskörű felelősséggel tartozik. "]
[]
["Hely, dátum"]
[{"$nulls":4}," ……………………………………"]
[{"$nulls":4},"cégszerű aláírás*",null,"Ph."]
[]
[]
[]
[]
["* Az aláírók nevét nyomtatott betűkkel is kérjük kitölteni."]

{"sheet":"(9T) részfeladat tábla","index":8,"n_rows":47,"n_cols":54,"rows_kept":47,"cut":false,"hidden":false,"merged":[[1,5,1,11],[4,0,4,11],[0,14,0,18],[4,14,4,25],[0,19,0,25],[0,0,0,4],[1,0,1,4],[1,19,1,25],[1,14,1,18],[0,5,0,11],[0,47,0,53],[37,28,37,30],[0,33,0,39],[4,28,4,39],[0,42,0,46],[4,42,4,53],[1,42,1,46],[1,47,1,53],[1,33,1,39],[0,28,0,32],[37,42,37,44],[1,28,1,32],[2,47,2,53],[38,42,38,44],[2,0,2,4],[2,5,2,11],[2,14,2,18],[2,28,2,32],[2,19,2,25],[2,33,2,39],[37,0,37,2],[37,14,37,16],[3,0,3,11],[2,42,2,46],[38,0,38,2],[38,14,38,16],[38,28,38,30]]}
["Kedvezményezett neve:",{"$nulls":4},{"$f":"előlap!C5","v":"ZZ Kft"},{"$nulls":8},"Kedvezményezett neve:",{"$nulls":4},{"$f":"F1","v":"ZZ Kft"},{"$nulls":8},"Kedvezményezett neve:",{"$nulls":4},{"$f":"F1","v":"ZZ Kft"},{"$nulls":8},"Kedvezményezett neve:",{"$nulls":4},{"$f":"F1","v":"ZZ Kft"}]
["Szerződésszám:",{"$nulls":4},{"$f":"előlap!C6","v":"NPK_22-2022-0001"},{"$nulls":8},"Szerződésszám:",{"$nulls":4},{"$f":"F2","v":"NPK_22-2022-0001"},{"$nulls":8},"Szerződésszám:",{"$nulls":4},{"$f":"F2","v":"NPK_22-2022-0001"},{"$nulls":8},"Szerződésszám:",{"$nulls":4},{"$f":"F2","v":"NPK_22-2022-0001"}]
["Az elszámolással érintett időszak kezdete és vége:",{"$nulls":4},{"$f":"előlap!C7","v":"2020.01.01.-2022.12.31."},{"$nulls":8},"Az elszámolással érintett időszak kezdete és vége:",{"$nulls":4},{"$f":"F3","v":"2020.01.01.-2022.12.31."},{"$nulls":8},"Az elszámolással érintett időszak kezdete és vége:",{"$nulls":4},{"$f":"F3","v":"2020.01.01.-2022.12.31."},{"$nulls":8},"Az elszámolással érintett időszak kezdete és vége:",{"$nulls":4},{"$f":"AH3","v":"2020.01.01.-2022.12.31."}]
[]
["RÉSZFELADAT TÁBLA - TÁMOGATÁSI KÖLTSÉG",{"$nulls":13},"RÉSZFELADAT TÁBLA - SAJÁT FORRÁS",{"$nulls":13},"RÉSZFELADAT TÁBLA - EGYÉB FORRÁS",{"$nulls":13},"RÉSZFELADAT TÁBLA - ÖSSZESÍTÉS"]
[]
["rész-fel-adat sor-szám","támogatás típusa (legördülő menű)","rész-feladat támog. Int.","személyi juttatás (bruttó bér + juttatások)","járulék","külső megbízás","egyéb dologi költségek","rezsi költségek","immateriális javak beszerzése","eszközbe-szerzés","beruházás, felújítás","összesen",null,null,"rész-fel-adat sor-szám","támogatás típusa","rész-feladat támog. Int.","személyi juttatás (bruttó bér + juttatások)","járulék","külső megbízás","egyéb dologi költségek","rezsi költségek","immateriális javak beszerzése","eszközbe-szerzés","beruházás, felújítás","összesen",null,null,"rész-fel-adat sor-szám","támogatás típusa","részfel-adat támog. Int.","személyi juttatás (bruttó bér + juttatások)","járulék","külső megbízás","egyéb dologi költségek","rezsi költségek","immateriális javak beszerzése","eszközbe-szerzés","beruházás, felújítás","összesen",null,null,"rész-fel-adat sor-szám","támogatás típusa","részfel-adat támog. Int.","személyi juttatás (bruttó bér + juttatások)","járulék","külső megbízás","egyéb dologi költségek","rezsi költségek","immateriális javak beszerzése","eszközbe-szerzés","beruházás, felújítás","összesen"]
[1,"K+F/Alkalm.",1,6000,2000,325,10100,200,3000,50000,2500,{"$f":"SUM(D8:K8)","v":74125},null,null,{"$f":"A8","v":1},"K+F/Alkalm.",1,600,200,0,0,0,3000,50000,7500,{"$f":"SUM(R8:Y8)","v":61300},null,null,{"$f":"A8","v":1},{"$f":"P8","v":"K+F/Alkalm."},1,10,20,0,0,0,0,0,0,{"$f":"SUM(AF8:AM8)","v":30},null,null,{"$f":"A8","v":1},{"$f":"AD8","v":"K+F/Alkalm."},{"$f":"AE8","v":1},{"$f":"D8+R8+AF8","v":6610},2220,325,10100,200,6000,100000,10000,{"$f":"SUM(AT8:BA8)","v":135455}]
[null,"K+F/Alkalm.",{"$nulls":9},{"$f":"SUM(D9:K9)","v":0},null,null,0,"K+F/Alkalm.",0,{"$nulls":8},{"$f":"SUM(R9:Y9)","v":0},null,null,{"$f":"A9","v":0},"K+F/Alkalm.",0,{"$nulls":8},{"$f":"SUM(AF9:AM9)","v":0},null,null,{"$f":"A9","v":0},"K+F/Alkalm.",0,{"$f":"D9+R9+AF9","v":0},{"$f":"E9+S9+AG9","v":0},{"$f":"F9+T9+AH9","v":0},{"$f":"G9+U9+AI9","v":0},{"$f":"H9+V9+AJ9","v":0},{"$f":"I9+W9+AK9","v":0},{"$f":"J9+X9+AL9","v":0},{"$f":"K9+Y9+AM9","v":0},{"$f":"SUM(AT9:BA9)","v":0}]
[null,"K+F/Kis.fejl.",{"$nulls":9},0,null,null,0,"K+F/Kis.fejl.",0,{"$nulls":8},0,null,null,0,"K+F/Kis.fejl.",0,{"$nulls":8},0,null,null,0,"K+F/Kis.fejl.",0,0,0,0,0,{"$f":"H10+V10+AJ10","v":0},0,0,0,0]
[null,"K+F/Mv tan.",{"$nulls":9},0,null,null,{"$f":"A11","v":0},{"$f":"B11","v":"K+F/Mv tan."},{"$f":"C11","v":0},{"$nulls":8},0,null,null,0,{"$f":"P11","v":"K+F/Mv tan."},{"$f":"Q11","v":0},{"$nulls":8},0,null,null,0,"K+F/Mv tan.",0,0,0,0,0,0,0,0,0,0]
[null,"D.M./Közbesz.",{"$nulls":9},0,null,null,0,"D.M./Közbesz.",0,{"$nulls":8},0,null,null,0,"D.M./Közbesz.",0,{"$nulls":8},0,null,null,0,"D.M./Közbesz.",0,0,0,0,0,0,0,0,0,0]
[null,"D.M./Koord.",{"$nulls":9},0,null,null,0,"D.M./Koord.",0,{"$nulls":8},0,null,null,0,"D.M./Koord.",0,{"$nulls":8},0,null,null,0,"D.M./Koord.",0,0,0,0,0,0,0,0,0,0]
[null,"D.M./Tájék.",{"$nulls":9},0,null,null,0,"D.M./Tájék.",0,{"$nulls":8},0,null,null,0,"D.M./Tájék.",0,{"$nulls":8},0,null,null,0,"D.M./Tájék.",0,0,0,0,0,0,0,0,0,0]
[null,"D.M./Rezsi",{"$nulls":9},0,null,null,0,"D.M./Rezsi",0,{"$nulls":8},0,null,null,0,"D.M./Rezsi",0,{"$nulls":8},0,null,null,0,"D.M./Rezsi",0,0,0,0,0,0,0,0,0,0]
[null,"D.M./Egyéb",{"$nulls":9},0,null,null,0,"D.M./Egyéb",0,{"$nulls":8},0,null,null,0,"D.M./Egyéb",0,{"$nulls":8},0,null,null,0,"D.M./Egyéb",0,0,0,0,0,0,0,0,0,0]
[null,"Kut.infra.- b.r.",{"$nulls":9},0,null,null,0,"Kut.infra.- b.r.",0,{"$nulls":8},0,null,null,0,"Kut.infra.- b.r.",0,{"$nulls":8},0,null,null,0,"Kut.infra.- b.r.",0,0,0,0,0,0,0,0,0,0]
[null,"I.Klaszter/1",{"$nulls":9},0,null,null,0,"I.Klaszter/1",0,{"$nulls":8},0,null,null,0,"I.Klaszter/1",0,{"$nulls":8},0,null,null,0,"I.Klaszter/1",0,0,0,0,0,0,0,0,0,0]
[null,"I.Klaszter/2",{"$nulls":9},0,null,null,0,"I.Klaszter/2",0,{"$nulls":8},0,null,null,0,"I.Klaszter/2",0,{"$nulls":8},0,null,null,0,"I.Klaszter/2",0,0,0,0,0,0,0,0,0,0]
[null,"I.Klaszter/3",{"$nulls":9},0,null,null,0,"I.Klaszter/3",0,{"$nulls":8},0,null,null,0,"I.Klaszter/3",0,{"$nulls":8},0,null,null,0,"I.Klaszter/3",0,0,0,0,0,0,0,0,0,0]
[null,"KKV-innov./1",{"$nulls":9},0,null,null,0,"KKV-innov./1",0,{"$nulls":8},0,null,null,0,"KKV-innov./1",0,{"$nulls":8},0,null,null,0,"KKV-innov./1",0,0,0,0,0,0,0,0,0,0]
[null,"KKV-innov./2",{"$nulls":9},0,null,null,0,"KKV-innov./2",0,{"$nulls":8},0,null,null,0,"KKV-innov./2",0,{"$nulls":8},0,null,null,0,"KKV-innov./2",0,0,0,0,0,0,0,0,0,0]
[null,"KKV-innov./3",{"$nulls":9},0,null,null,0,"KKV-innov./3",0,{"$nulls":8},0,null,null,0,"KKV-innov./3",0,{"$nulls":8},0,null,null,0,"KKV-innov./3",0,0,0,0,0,0,0,0,0,0]
[null,"Elj.és szerv. innov.",{"$nulls":9},0,null,null,0,"Elj.és szerv. innov.",0,{"$nulls":8},0,null,null,0,"Elj.és szerv. innov.",0,{"$nulls":8},0,null,null,0,"Elj.és szerv. innov.",0,0,0,0,0,0,0,0,0,0]
[null,"KKV-b.r.",{"$nulls":9},0,null,null,0,"KKV-b.r.",0,{"$nulls":8},0,null,null,0,"KKV-b.r.",0,{"$nulls":8},0,null,null,0,"KKV-b.r.",0,0,0,0,0,0,0,0,0,0]
[null,"KKV-tan.",{"$nulls":9},{"$f":"SUM(D26:K26)","v":0},null,null,{"$f":"A26","v":0},{"$f":"B26","v":"KKV-tan."},{"$f":"C26","v":0},{"$nulls":8},{"$f":"SUM(R26:Y26)","v":0},null,null,0,{"$f":"P26","v":"KKV-tan."},{"$f":"Q26","v":0},{"$nulls":8},{"$f":"SUM(AF26:AM26)","v":0},null,null,0,{"$f":"AD26","v":"KKV-tan."},{"$f":"AE26","v":0},{"$f":"D26+R26+AF26","v":0},{"$f":"E26+S26+AG26","v":0},{"$f":"F26+T26+AH26","v":0},{"$f":"G26+U26+AI26","v":0},0,{"$f":"I26+W26+AK26","v":0},{"$f":"J26+X26+AL26","v":0},{"$f":"K26+Y26+AM26","v":0},{"$f":"SUM(AT26:BA26)","v":0}]
[null,"KKV-tan.",{"$nulls":9},0,null,null,0,"KKV-tan.",0,{"$nulls":8},0,null,null,0,"KKV-tan.",0,{"$nulls":8},0,null,null,0,"KKV-tan.",0,0,0,0,0,0,0,{"$f":"J27+X27+AL27","v":0},{"$f":"K27+Y27+AM27","v":0},0]
[null,"KKV-vásár.",{"$nulls":9},0,null,null,0,"KKV-vásár.",0,{"$nulls":8},0,null,null,0,"KKV-vásár.",0,{"$nulls":8},0,null,null,0,"KKV-vásár.",0,0,0,0,0,0,0,0,0,0]
[null,"KKV-együttm.",{"$nulls":9},0,null,null,0,"KKV-együttm.",0,{"$nulls":8},0,null,null,0,"KKV-együttm.",0,{"$nulls":8},0,null,null,0,"KKV-együttm.",0,0,0,0,0,0,0,0,0,0]
[null,"Nem állami támogatás",{"$nulls":9},0,null,null,0,"Nem állami támogatás",0,{"$nulls":8},0,null,null,0,"Nem állami támogatás",0,{"$nulls":8},0,null,null,0,"Nem állami támogatás",0,0,0,0,0,0,0,0,0,0]
[{"$nulls":11},0,null,null,0,0,0,{"$nulls":8},0,null,null,0,0,0,{"$nulls":8},0,null,null,0,0,0,0,0,0,0,0,0,0,0,0]
[{"$nulls":11},0,null,null,0,0,0,{"$nulls":8},0,null,null,0,0,0,{"$nulls":8},0,null,null,0,0,0,0,0,0,0,0,0,0,0,0]
[{"$nulls":11},0,null,null,0,0,0,{"$nulls":8},0,null,null,0,0,0,{"$nulls":8},0,null,null,0,0,0,0,0,0,0,0,0,0,0,0]
[{"$nulls":11},0,null,null,0,0,0,{"$nulls":8},0,null,null,0,0,0,{"$nulls":8},0,null,null,0,0,0,0,0,0,0,0,0,0,0,0]
[{"$nulls":11},0,null,null,0,0,0,{"$nulls":8},0,null,null,0,0,0,{"$nulls":8},0,null,null,0,0,0,0,0,0,0,0,0,0,0,0]
[{"$nulls":11},0,null,null,0,0,0,{"$nulls":8},0,null,null,0,0,0,{"$nulls":8},0,null,null,0,0,0,0,0,0,0,0,0,0,0,0]
[]
["elszámolt költségek összegzése:",null,null,{"$f":"SUM(D8:D37)","v":6000},2000,325,10100,200,3000,50000,2500,74125,null,null,"elszámolt költségek összegzése:",null,null,{"$f":"SUM(R8:R37)","v":600},200,0,0,0,3000,50000,7500,61300,null,null,"elszámolt költségek összegzése:",null,null,{"$f":"SUM(AF8:AF37)","v":10},20,0,0,0,0,0,0,30,null,null,"elszámolt költségek összegzése:",null,null,{"$f":"SUM(AT8:AT37)","v":6610},2220,325,10100,200,6000,100000,10000,135455]
["költségösszegzés a számlaösszesítők alapján:",null,null,{"$f":"'(1T-2T) személyi+járulék'!N26","v":6000},{"$f":"'(1T-2T) személyi+járulék'!Q26","v":2000},{"$f":"'(3T) külső megbízás'!L28","v":325},{"$f":"'(4T) egyéb dologi költs'!L25","v":10100},{"$f":"'(5T) rezsi'!L25","v":200},{"$f":"'(6T)immat beszerz'!O27","v":3000},{"$f":"'(7T) eszközbeszerz'!O27","v":50000},{"$f":"'(8T) beruházás felújítás'!O27","v":2500},{"$f":"SUM(D39:K39)","v":74125},null,null,"költségösszegzés a számlaösszesítők alapján:",null,null,{"$f":"'(1T-2T) személyi+járulék'!O26","v":600},{"$f":"'(1T-2T) személyi+járulék'!R26","v":200},{"$f":"'(3T) külső megbízás'!M28","v":0},{"$f":"'(4T) egyéb dologi költs'!M25","v":0},{"$f":"'(5T) rezsi'!M25","v":0},{"$f":"'(6T)immat beszerz'!P27","v":3000},{"$f":"'(7T) eszközbeszerz'!P27","v":50000},{"$f":"'(8T) beruházás felújítás'!P27","v":7500},{"$f":"SUM(R39:Y39)","v":61300},null,null,"költségösszegzés a számlaösszesítők alapján:",null,null,{"$f":"'(1T-2T) személyi+járulék'!M26","v":10},{"$f":"'(1T-2T) személyi+járulék'!S26","v":20},{"$f":"'(3T) külső megbízás'!N28","v":0},{"$f":"'(4T) egyéb dologi költs'!N25","v":0},{"$f":"'(5T) rezsi'!N25","v":0},{"$f":"'(6T)immat beszerz'!Q27","v":0},{"$f":"'(7T) eszközbeszerz'!Q27","v":0},{"$f":"'(8T) beruházás felújítás'!Q27","v":0},{"$f":"SUM(AF39:AM39)","v":30},null,null,"költségösszegzés a számlaösszesítők alapján:",null,null,{"$f":"SUM('(1T-2T) személyi+járulék'!N26:P26)","v":6660},{"$f":"SUM('(1T-2T) személyi+járulék'!Q26:S26)","v":2220},{"$f":"'(3T) külső megbízás'!O28","v":325},{"$f":"'(4T) egyéb dologi költs'!O25","v":10100},{"$f":"'(5T) rezsi'!O25","v":200},{"$f":"'(6T)immat beszerz'!R27","v":6000},{"$f":"'(7T) eszközbeszerz'!R27","v":100000},{"$f":"'(8T) beruházás felújítás'!R27","v":10000},{"$f":"SUM(AT39:BA39)","v":135505}]
["Hely, dátum",{"$nulls":13},"Hely, dátum",{"$nulls":13},"Hely, dátum",{"$nulls":13},"Hely, dátum"]
[]
[]
[{"$nulls":4},"……………………………………….",{"$nulls":13},"……………………………………….",{"$nulls":13},"……………………………………….",{"$nulls":13},"………………………………………."]
[{"$nulls":4},"cégszerű aláírás*",null,"PH.",{"$nulls":11},"cégszerű aláírás*",null,"PH.",{"$nulls":11},"cégszerű aláírás*",null,"PH.",{"$nulls":11},"cégszerű aláírás*",null,"PH."]
["* Az aláírók nevét nyomtatott betűkkel is kérjük kitölteni.",{"$nulls":13},"* Az aláírók nevét nyomtatott betűkkel is kérjük kitölteni.",{"$nulls":13},"* Az aláírók nevét nyomtatott betűkkel is kérjük kitölteni."]
[]
[{"$nulls":42},"* Az aláírók nevét nyomtatott betűkkel is kérjük kitölteni."]

{"sheet":"támogatás típusai","index":9,"n_rows":25,"n_cols":3,"rows_kept":25,"cut":false,"hidden":true,"merged":[[1,1,1,2],[4,2,6,2],[8,2,11,2],[14,2,15,2]]}
[]
["támogatás típus rövídítése","támogatás típusa"]
[]
["K+F/Alap.","Alapkutatás","Kutatás-fejlesztési projekthez nyújtott támogatás "]
["K+F/Alkalm.","Alkalmazott (ipari) kutatás"]
["K+F/Kis.fejl.","Kísérleti fejlesztés"]
["K+F/Mv tan.","Megvalósíthatósági tanulmány"]
["D.M./Közbesz.","Közbeszerzés","De minimis támogatás"]
["D.M./Koord.","Koordináció"]
["D.M./Tájék.","Tájékoztatás"]
["D.M./Rezsi","Rezsi"]
["D.M./Egyéb","Egyéb"]
["Kut.infra.- b.r.","Kutatási infrastruktúrához nyújtott beruházási támogatás","Kutatási infrastruktúrához nyújtott beruházási támogatás"]
["I.Klaszter/1","az együttműködés és információmegosztás elősegítésére, illetve a specializált, személyre szabott üzleti szolgáltatás nyújtásának vagy közvetítésének javítására szolgáló klaszterélénkítés","Innovációs klaszterre nyújtott támogatás"]
["I.Klaszter/2","az újabb vállalkozások és szervezetek klaszterhez történő csatlakozása, valamint a klaszter ismertségének növelése érdekében végzett marketingtevékenység"]
["I.Klaszter/3","a klaszter létesítményeinek kezelése; az ismeretmegosztás, kapcsolatépítés és nemzetközi együttműködés támogatására szolgáló képzési programok, műhelytalálkozók és konferenciák szervezése"]
["KKV-innov./1","szabadalmak és egyéb immateriális javak megszerzésének, érvényesítésének és védelmének költségei","KKV-knak nyújtott innovációs támogatás"]
["KKV-innov./2","olyan, kutató-tudásközvetítő szervezettől vagy nagyvállalkozástól kirendelt, magasan képzett munkaerő költségei, aki kutatás-fejlesztési és innovációs tevékenységeken, a kedvezményezettnél újonnan létrehozott munkakörben dolgozik, és nem a személyzet más tagjait helyettesíti"]
["KKV-innov./3","innovációs tanácsadás és támogató szolgáltatások költségei"]
["Elj.és szerv. innov.","Eljárási és szervezési innováció támogatása","Eljárási és szervezési innováció támogatása"]
["KKV-b.r.","KKV-knak nyújtott beruházási támogatás","KKV-knak nyújtott beruházási támogatás"]
["KKV-tan.","A kkv-k részére tanácsadáshoz nyújtott támogatás","A kkv-k részére tanácsadáshoz nyújtott támogatás"]
["KKV-vásár.","A kkv-k vásárokon való részvételéhez nyújtott támogatás","A kkv-k vásárokon való részvételéhez nyújtott támogatás"]
["KKV-együttm.","Az európai területi együttműködési projektekben részt vevő kkv-knál felmerült együttműködési költségekhez nyújtott támogatás","Az európai területi együttműködési projektekben részt vevő kkv-knál felmerült együttműködési költségekhez nyújtott támogatás"]
["Nem állami támogatás","Nem állami támogatás"]

{"sheet":"(TI) támogatás igénylés","index":10,"n_rows":47,"n_cols":5,"rows_kept":47,"cut":false,"hidden":false,"merged":[[13,0,13,2],[14,0,14,2],[9,0,9,2],[10,0,10,2],[9,3,9,4],[10,3,10,4],[12,3,12,4],[11,0,11,2],[12,0,12,2],[11,3,11,4],[0,0,0,4],[1,0,1,4],[4,0,4,4],[7,0,7,4],[6,2,6,4],[46,0,46,4],[17,0,17,2],[19,3,20,4],[21,0,21,4],[38,0,38,4],[17,3,17,4],[44,0,44,4],[37,0,37,4],[18,0,18,2],[18,3,18,4],[45,0,45,4],[40,0,40,2],[15,0,15,2],[14,3,14,4],[16,0,16,2],[16,3,16,4],[43,0,43,4],[42,0,42,4],[15,3,15,4]]}
["Egy példányban kitöltve, eredeti aláírással és bélyegzéssel ellátva kell benyújtani."]
["Az űrlap másolható, alakját és tartalmát kérjük, ne változtassa meg!"]
["Az űrlap a táblázat adatait a részfeladat táblából automatikusan átveszi!"]
[]
["TÁMOGATÁS IGÉNYLÉS "]
[]
["Számviteli bizonylat a(z) ",{"$f":"'(1T-2T) személyi+járulék'!G2","v":"NPK_22-2022-0001"},"számú szerződésben foglalt források felhasználásának elszámolásához"]
["A bizonylat formájára és tartalmára a számvitelről szóló 2000. évi C. törvény előírásai az irányadók"]
[]
["Kedvezményezett:",null,null,"Támogatást nyújtó:"]
["Kedvezményezett neve:………………………………",null,null,"Nemzeti Kutatási, Fejlesztési és Innovációs Hivatal","Nemzeti Kutatási, Fejlesztési és Innovációs Hivatal"]
["címe: ……………………………………………………",null,null,"címe: 1077 Budapest, Kéthly Anna tér 1."]
[null,null,null,"Magyar Államkincstárnál vezetett  számla"]
["Adóazonosító száma: …………………………………",null,null,"Megnevezése: "]
[null,null,null," Nemzeti Kutatási, Fejlesztési és Innovációs Alap, Előirányzat-felhasználási keretszámla: "]
["Hitelintézet: ………………………………………..…..",null,null,"száma:"]
[null,null,null,"10032000-00334806-00000000"]
["Pénzforgalmi jelzőszáma:",null,null,"AHT azonosító:  "]
["………………………………………………..………..",null,null,348962]
["Teljesítés időpontja: (*)",null,"Bizonylat kelte:","Támogatásigénylő bizonylat sorszáma: (**)"]
["         év        hó       nap",null,"         év        hó       nap"]
["A szerződés mellékletében rögzített, a számlaösszesítőkben feltűntetett részfeladatok teljesítésének ráfordításai forrásonként és jogcímenként (***)"]
["Költségtípusok","Támogatás (Ft)","Saját forrás (Ft)","Egyéb forrás (Ft)","Összesen (Ft)"]
["Működési költségek (1+2+3+4+5)",{"$f":"SUM(B25:B26)+SUM(B28:B30)","v":18625},{"$f":"SUM(C25:C26)+SUM(C28:C30)","v":800},30,{"$f":"SUM(B24:D24)","v":19455}]
["Személyi juttatások (1)",{"$f":"'(9T) részfeladat tábla'!D38","v":6000},{"$f":"'(9T) részfeladat tábla'!R38","v":600},{"$f":"'(9T) részfeladat tábla'!AF38","v":10},6610]
["Munkaadókat terhelő járulékok (2)",{"$f":"'(9T) részfeladat tábla'!E38","v":2000},{"$f":"'(9T) részfeladat tábla'!S38","v":200},{"$f":"'(9T) részfeladat tábla'!AG38","v":20},2220]
["Dologi költségek (3+4+5)",{"$f":"SUM(B28:B30)","v":10625},{"$f":"SUM(C28:C30)","v":0},{"$f":"SUM(D28:D30)","v":0},10625]
["Külső megbízás (3)",{"$f":"'(9T) részfeladat tábla'!F38","v":325},{"$f":"'(9T) részfeladat tábla'!T38","v":0},{"$f":"'(9T) részfeladat tábla'!AH38","v":0},325]
["Egyéb dologi költségek (4)",{"$f":"'(9T) részfeladat tábla'!G38","v":10100},{"$f":"'(9T) részfeladat tábla'!U38","v":0},{"$f":"'(9T) részfeladat tábla'!AI38","v":0},{"$f":"SUM(B29:D29)","v":10100}]
["Rezsi költségek (5)",{"$f":"'(9T) részfeladat tábla'!H38","v":200},{"$f":"'(9T) részfeladat tábla'!V38","v":0},{"$f":"'(9T) részfeladat tábla'!AJ38","v":0},200]
["Felhalmozási költségek (6+7+8)",{"$f":"SUM(B32:B34)","v":55500},{"$f":"SUM(C32:C34)","v":60500},{"$f":"SUM(D32:D34)","v":0},{"$f":"SUM(B31:D31)","v":116000}]
["Immateriális javak beszerzése (6)",{"$f":"'(9T) részfeladat tábla'!I38","v":3000},{"$f":"'(9T) részfeladat tábla'!W38","v":3000},{"$f":"'(9T) részfeladat tábla'!AK38","v":0},{"$f":"SUM(B32:D32)","v":6000}]
["Eszközbeszerzések (7)",{"$f":"'(9T) részfeladat tábla'!J38","v":50000},{"$f":"'(9T) részfeladat tábla'!X38","v":50000},{"$f":"'(9T) részfeladat tábla'!AL38","v":0},{"$f":"SUM(B33:D33)","v":100000}]
["Beruházás, felújítás (8)",{"$f":"'(9T) részfeladat tábla'!K38","v":2500},{"$f":"'(9T) részfeladat tábla'!Y38","v":7500},{"$f":"'(9T) részfeladat tábla'!AM38","v":0},{"$f":"SUM(B34:D34)","v":10000}]
["Költségek összesen: (1+2+3+4+5+6+7+8)",{"$f":"B24+B31","v":74125},{"$f":"C24+C31","v":61300},{"$f":"D24+D31","v":30},{"$f":"SUM(B35:D35)","v":135455}]
[]
[]
["Igényelt támogatás (****) összesen: ………………………Ft, azaz ………………………………………………Ft"]
["A jelen munkaszakaszban felhasználásra nem került előleget/támogatást a következő munkaszakasz megvalósításakor kívánjuk igénybe venni."]
[]
["cégszerű aláírás (*****) ……………………………………………………………………",null,null,"PH."]
[]
["* Az adott munkaszakasz vége."]
["** Javasolt munkaszakaszokhoz köthető sorszámot megadni. Pl. (xxxx -1/2017)"]
["*** A kedvezményezett részéről a szerződés szerinti könyvvizsgálói nyilatkozat egyidejű csatolása szükséges."]
["**** Az igényelt támogatás az elszámolt támogatás és a kapott előleg különbsége."]
["***** Az aláírók nevét nyomtatott betűkkel is kérjük kitölteni."]

{"sheet":"(KNY)könyvvizsgálói nyilatkozat","index":11,"n_rows":46,"n_cols":5,"rows_kept":46,"cut":false,"hidden":false,"merged":[[45,0,45,4],[34,0,34,4],[31,2,31,4],[3,1,3,2],[4,1,4,2],[5,1,5,2],[13,0,13,4],[37,0,37,4],[44,0,44,4],[43,0,43,4]]}
["Egy példányban kitöltve, eredeti aláírással és bélyegzéssel ellátva kell benyújtani.",null,null,null,"Formanyomtatvány pénzügyi elszámoláshoz"]
["A táblázat adatai a Támogatás igénylés lapról automatikusan bemásolódnak!"]
[]
["Kedvezményezett neve:",{"$f":"'(1T-2T) személyi+járulék'!G1","v":"ZZ Kft"}]
["Szerződésszám:",{"$f":"'(1T-2T) személyi+járulék'!G2","v":"NPK_22-2022-0001"}]
["Az elszámolással érintett időszak kezdete és vége:",{"$f":"'(1T-2T) személyi+járulék'!G3","v":"2020.01.01.-2022.12.31."}]
[]
[]
[]
[null,null,"N Y I L A T K O Z A T"]
[null,null,"(a kedvezményezett tölti ki)"]
[]
[]
["Alulírott <név>, mint a <kedvezményezett megnevezése> társaság/szervezet cégjegyzésre jogosult vezetője teljes jogi felelősséggel nyilatkozom, hogy a fenti támogatási szerződés alapján a szakmai és pénzügyi beszámolóra vonatkozó előírások szerint a támogatás és a saját/egyéb forrás felhasználásáról, valamint a kamatok tekintetében teljes körű, elkülönített nyilvántartást vezetek. \nAz elszámolni kívánt költségek az adott projektre vonatkozó tárgyi és időbeli elszámolhatósági szabályokkal összhangban, számlákkal vagy egyéb a költséget igazoló számviteli bizonylatokkal alátámasztva, teljesítésigazolás mellett kerültek felhasználásra és azokra további EU-s vagy egyéb hazai támogatás nem került elszámolásra.\nA szerződés melléklete alapján, a számlaösszesítőkben feltüntetett részfeladatok teljesítése során keletkezett ráfordítások összege < összeg számmal Ft-ban> Ft azaz <összeg betűvel Ft-ban>, az alábbi forrásonként és jogcímenként kerülnek elszámolásra. A kimutatott ráfordítások a szerződésben vállalt célok megvalósítása érdekében merültek fel."]
[]
[]
["Költségtípusok","Támogatás (Ft)","Saját forrás (Ft)","Egyéb forrás (Ft)","Összesen (Ft)"]
["Személyi juttatások ",{"$f":"'(TI) támogatás igénylés'!B25","v":6000},{"$f":"'(TI) támogatás igénylés'!C25","v":600},{"$f":"'(TI) támogatás igénylés'!D25","v":10},{"$f":"SUM(B18:D18)","v":6610}]
["Munkaadókat terhelő járulékok ",{"$f":"'(TI) támogatás igénylés'!B26","v":2000},{"$f":"'(TI) támogatás igénylés'!C26","v":200},{"$f":"'(TI) támogatás igénylés'!D26","v":20},2220]
["Külső megbízás",{"$f":"'(TI) támogatás igénylés'!B28","v":325},{"$f":"'(TI) támogatás igénylés'!C28","v":0},{"$f":"'(TI) támogatás igénylés'!D28","v":0},325]
["Egyéb dologi költségek",{"$f":"'(TI) támogatás igénylés'!B29","v":10100},{"$f":"'(TI) támogatás igénylés'!C29","v":0},{"$f":"'(TI) támogatás igénylés'!D29","v":0},10100]
["Rezsi költségek",{"$f":"'(TI) támogatás igénylés'!B30","v":200},{"$f":"'(TI) támogatás igénylés'!C30","v":0},{"$f":"'(TI) támogatás igénylés'!D30","v":0},200]
["Immateriális javak beszerzése",{"$f":"'(TI) támogatás igénylés'!B32","v":3000},{"$f":"'(TI) támogatás igénylés'!C32","v":3000},{"$f":"'(TI) támogatás igénylés'!D32","v":0},6000]
["Eszközbeszerzések",{"$f":"'(TI) támogatás igénylés'!B33","v":50000},{"$f":"'(TI) támogatás igénylés'!C33","v":50000},{"$f":"'(TI) támogatás igénylés'!D33","v":0},100000]
["Beruházás, felújítás",{"$f":"'(TI) támogatás igénylés'!B34","v":2500},{"$f":"'(TI) támogatás igénylés'!C34","v":7500},{"$f":"'(TI) támogatás igénylés'!D34","v":0},10000]
["Összesen:",{"$f":"SUM(B18:B25)","v":74125},{"$f":"SUM(C18:C25)","v":61300},{"$f":"SUM(D18:D25)","v":30},{"$f":"SUM(E18:E25)","v":135455}]
[]
["……………………….,  …………év …………….hó …….nap."]
[]
[]
[null,null,null,"…………………………"]
[null,null,"            Kedvezményezett képviseletére jogosult vezető aláírása*"]
[null,null,null,"PH."]
[]
["Alulírott <név>, mint a <kedvezményezett megnevezése> társaság/szervezet (megbízott) könyvvizsgálója, és <név>, mint a <kedvezményezett megnevezése> társaság/szervezet gazdasági vezetője igazolom, hogy a fenti adatok a <kedvezményezett megnevezése> társaság/szervezet elkülönített számviteli nyilvántartásával megegyeznek."]
[]
["………………………., ……….év ………………hó ……nap."]
[]
[]
[null,"…………………………",null,null,"…………………………"]
[null,"gazdasági vezető aláírása*",null,null,"könyvvizsgáló aláírása*"]
[{"$nulls":4},"Könyvvizsgálói Kamaránál nyilvántartott bejegyzési szám: ……………………."]
[]
[]
["Melléklet: aláírt támogatásigénylő lap (melynek ráfordítási adatai jogcímenként és forrásonként megegyezik a nyilatkozatban foglalt adatokkal) "]
["* Az aláírók nevét nyomtatott betűkkel is kérjük kitölteni."]

{"sheet":"(LNY) lemondó nyilatkozat","index":12,"n_rows":31,"n_cols":2,"rows_kept":31,"cut":false,"hidden":false,"merged":[[6,0,6,1],[15,0,15,1],[30,0,30,1]]}
[]
["Egy példányban kitöltve, eredeti aláírással és bélyegzéssel ellátva kell benyújtani."]
[]
[]
[]
[]
["Lemondó Nyilatkozat"]
[]
[]
[]
["Kedvezményezett neve",{"$f":"'(1T-2T) személyi+járulék'!G1","v":"ZZ Kft"}]
["Szerződésszám",{"$f":"'(1T-2T) személyi+járulék'!G2","v":"NPK_22-2022-0001"}]
["Az elszámolással érintett időszak kezdete és vége:",{"$f":"'(1T-2T) személyi+járulék'!G3","v":"2020.01.01.-2022.12.31."}]
[]
[]
["Alulírott <név>, mint a <kedvezményezett megnevezése> társaság/szervezet cégjegyzésre jogosult vezetője nyilatkozom, hogy a fenti azonosító számú projekt megvalósításához a megítélt támogatásból összesen <a ténylegesen elszámolt támogatás összege> Ft került felhasználásra. A fennmaradó <a megítélt és a tényleges támogatás különbsége> Ft támogatást a továbbiakban nem kívánom igénybe venni, így arról lemondok. "]
[]
[]
["Hely, dátum"]
[]
[]
[]
[null,"………………………………"]
[null,"Kedvezményezett cégszerű *"]
[null,"aláírása"]
[null,"Ph."]
[]
[]
[]
[]
["* Az aláírók nevét nyomtatott betűkkel is kérjük kitölteni"]

{"sheet":"(NYF)nyilatkozat függetlenségre","index":13,"n_rows":32,"n_cols":2,"rows_kept":32,"cut":false,"hidden":false,"merged":[[7,0,7,1],[16,0,16,1],[31,0,31,1]]}
[]
["Egy példányban kitöltve, eredeti aláírással és bélyegzéssel ellátva kell benyújtani."]
[]
[]
[]
[]
[]
["Nyilatkozat az összeférhetetlenségre vonatkozóan"]
[]
[]
[]
["Kedvezményezett neve",{"$f":"'(1T-2T) személyi+járulék'!G1","v":"ZZ Kft"}]
["Szerződésszám",{"$f":"'(1T-2T) személyi+járulék'!G2","v":"NPK_22-2022-0001"}]
["Az elszámolással érintett időszak kezdete és vége:",{"$f":"'(1T-2T) személyi+járulék'!G3","v":"2020.01.01.-2022.12.31."}]
[]
[]
["Alulírott <név>, mint a <kedvezményezett megnevezése> társaság/szervezet  cégjegyzésre jogosult vezetője büntető jogi felelősségem tudatában nyilatkozom, hogy a fenti azonosító számú támogatási szerződés alapján finanszírozott projekt megvalósításához igénybe vett szolgáltatások és beszerzések a szokásos piaci feltételeknek megfelelően, független felek között, a hivatkozott támogatási szerződésben, valamint ennek mellékleteiben foglalt előírások szerint jöttek létre."]
[]
[]
["Hely, dátum"]
[]
[]
[]
[null,"………………………………"]
[null,"Kedvezményezett cégszerű *"]
[null,"aláírása"]
[null,"Ph."]
[]
[]
[]
[]
["* Az aláírók nevét nyomtatott betűkkel is kérjük kitölteni"]

{"sheet":"(EI) előleg igénylés","index":14,"n_rows":45,"n_cols":3,"rows_kept":45,"cut":false,"hidden":false,"merged":[[10,0,10,1],[1,0,1,2],[2,0,2,2],[4,0,4,2],[7,0,7,2],[9,0,9,1],[11,0,11,1],[12,0,12,1],[13,0,13,1],[14,0,14,1],[14,2,15,2],[15,0,15,1],[28,1,28,2],[16,0,16,1],[17,0,17,1],[18,0,18,1],[19,2,20,2],[21,0,21,2],[22,1,22,2],[23,1,23,2],[24,1,24,2],[25,1,25,2],[26,1,26,2],[27,1,27,2],[39,0,39,2],[44,0,44,2],[33,1,33,2],[30,1,30,2],[31,1,31,2],[32,1,32,2],[34,1,34,2],[37,0,37,2],[38,0,38,2]]}
[]
["Egy példányban kitöltve, eredeti aláírással és bélyegzéssel ellátva kell benyújtani."]
["Az űrlap másolható, alakját és tartalmát kérjük, ne változtassa meg!"]
[]
["ELŐLEG IGÉNYLÉS"]
[]
["Számviteli bizonylat az ",{"$f":"'(TI) támogatás igénylés'!B7","v":"NPK_22-2022-0001"},"számú szerződésben foglalt projekthez"]
["A bizonylat formájára és tartalmára a számvitelről szóló 2000. évi C. törvény előírásai az irányadók"]
[]
["Kedvezményezett:",null,"Támogatást nyújtó:"]
["………………………………………………………….",null,"Nemzeti Kutatási, Fejlesztési és Innovációs Hivatal"]
["címe: ………………………………………………….",null,"címe: 1077 Budapest, Kéthly anna tér 1."]
[]
["Adóazonosító száma: …………………………………",null,"Megnevezése: "]
[null,null," Nemzeti Kutatási, Fejlesztési és Innovációs Alap, Előirányzat-felhasználási keretszámla: "]
["Hitelintézet: "]
["………………………………………………………..",null,"száma: 10032000-00334806-00000000"]
["Pénzforgalmi jelzőszáma:",null,"AHT azonosító:  "]
["………………………………………………………..",null,348962]
["Előleg elszámolási határidő:","Bizonylat kelte:"," Bizonylat  sorszáma "]
["         év        hó       nap","         év        hó       nap"]
["A szerződés teljesítéséhez igényelt előleg jogcímei."]
["Költségtípusok","Támogatás (Ft)"]
["Működési költségek (1+2+3+4+5)",{"$f":"B25+B26+B27","v":0}]
["Személyi juttatások (1)"]
["Munkaadókat terhelő járulékok (2)"]
["Dologi költségek (3+4+5)",{"$f":"B28+B29","v":0}]
["Külső megbízás (3)"]
["Egyéb dologi költségek (4)"]
["Rezsi költségek (5)"]
["Felhalmozási költségek (6+7+8)",{"$f":"SUM(B32:B34)","v":0}]
["Immateriális javak beszerzése (6)"]
["Eszközbeszerzések (7)"]
["Beruházás, felújítás (8)"]
["Költségek összesen:(1+2+3+4+5+6+7+8)",{"$f":"B24+B31","v":0}]
[]
[]
["Igényelt előleg összesen: ………………………Ft, azaz ………………………………………………Ft\n\n"]
[]
["Előleg kérelem indoklása:"]
[]
[null,"………………………"]
[null,"cégszerű aláírás*"]
[]
["* Az aláírók nevét nyomtatott betűkkel is kérjük kitölteni."]